[Event "December 5 Late 2023"]
[Site "https://www.chess.com"]
[Date "2023.12.05"]
[Round "5"]
[White "Lutz, Igor Oscar"]
[Black "Sari, Yasin"]
[Result "0-1"]
[Board "141"]
[TimeControl "180+1"]
[WhiteFideId "2110806"]
[BlackFideId "6320902"]
[WhiteElo "2084"]
[BlackElo "2368"]
[WhiteTeam "BRA"]
[BlackTeam "TUR"]
[WhiteClock "0:00:04"]
[BlackClock "0:00:07"]

1. d4 {[%clk 0:03:00]}  d5 {[%clk 0:02:59]} 2. c4 {[%clk 0:03:00]}  c6 {[%clk 0:03:00]} 3. Nf3 {[%clk 0:03:00]}  Nf6 {[%clk 0:03:00]} 4. g3 {[%clk 0:03:01]}  dxc4 {[%clk 0:02:58]} 5. Bg2 {[%clk 0:02:59]}  g6 {[%clk 0:02:57]} 6. O-O {[%clk 0:02:55]}  Bg7 {[%clk 0:02:57]} 7. Ne5 {[%clk 0:02:55]}  Be6 {[%clk 0:02:56]} 8. a4 {[%clk 0:02:51]}  Nbd7 {[%clk 0:02:55]} 9. Nf3 {[%clk 0:02:33]}  O-O {[%clk 0:02:54]} 10. Nbd2 {[%clk 0:02:21]}  c5 {[%clk 0:02:37]} 11. Qc2 {[%clk 0:02:13]}  Rc8 {[%clk 0:02:20]} 12. Ng5 {[%clk 0:02:13]}  cxd4 {[%clk 0:02:20]} 13. Nxe6 {[%clk 0:02:12]}  fxe6 {[%clk 0:02:21]} 14. Nxc4 {[%clk 0:02:04]}  Nb6 {[%clk 0:01:56]} 15. b3 {[%clk 0:02:00]}  Nfd5 {[%clk 0:01:56]} 16. Qe4 {[%clk 0:01:33]}  Nxc4 {[%clk 0:01:33]} 17. bxc4 {[%clk 0:01:20]}  Nc3 {[%clk 0:01:27]} 18. Qxe6+ {[%clk 0:01:16]}  Kh8 {[%clk 0:01:28]} 19. Bg5 {[%clk 0:01:07]}  Qd6 {[%clk 0:01:10]} 20. Qxd6 {[%clk 0:00:59]}  Nxe2+ {[%clk 0:01:05]} 21. Kh1 {[%clk 0:00:58]}  exd6 {[%clk 0:01:06]} 22. Be7 {[%clk 0:00:43]}  Rfe8 {[%clk 0:00:57]} 23. Bxd6 {[%clk 0:00:41]}  Rxc4 {[%clk 0:00:55]} 24. Bxb7 {[%clk 0:00:40]}  Rd8 {[%clk 0:00:35]} 25. Ba6 {[%clk 0:00:20]}  Rc2 {[%clk 0:00:34]} 26. Bd3 {[%clk 0:00:14]}  Rd2 {[%clk 0:00:33]} 27. Bxe2 {[%clk 0:00:11]}  Rxe2 {[%clk 0:00:34]} 28. Bc5 {[%clk 0:00:11]}  a6 {[%clk 0:00:26]} 29. Rad1 {[%clk 0:00:10]}  d3 {[%clk 0:00:26]} 30. Be3 {[%clk 0:00:10]}  Bc3 {[%clk 0:00:19]} 31. Kg2 {[%clk 0:00:10]}  d2 {[%clk 0:00:19]} 32. Kf3 {[%clk 0:00:09]}  Re1 {[%clk 0:00:18]} 33. Bxd2 {[%clk 0:00:02]}  Rxd1 {[%clk 0:00:12]} 34. Rxd1 {[%clk 0:00:02]}  Rxd2 {[%clk 0:00:12]} 35. Re1 {[%clk 0:00:01]}  Bd4 {[%clk 0:00:10]} 36. Kg2 {[%clk 0:00:02]}  Rxf2+ {[%clk 0:00:10]} 37. Kh3 {[%clk 0:00:03]}  Kg7 {[%clk 0:00:10]} 38. Re8 {[%clk 0:00:03]}  Rf6 {[%clk 0:00:08]} 39. Ra8 {[%clk 0:00:04]}  Rb6 {[%clk 0:00:07]} 40. Rd8 {[%clk 0:00:05]}  Bf6 {[%clk 0:00:08]} 41. a5 {[%clk 0:00:04]}  Bxd8 {[%clk 0:00:07]} 0-1

[Event "December 5 Late 2023"]
[Site "https://www.chess.com"]
[Date "2023.12.05"]
[Round "5"]
[White "Nery Junior, Jose Antonio"]
[Black "Sailer, Mike"]
[Result "1-0"]
[Board "142"]
[TimeControl "180+1"]
[WhiteFideId "2104822"]
[BlackFideId "2012901"]
[WhiteElo "2358"]
[BlackElo "2050"]
[WhiteTeam "BRA"]
[BlackTeam "USA"]
[WhiteClock "0:01:07"]
[BlackClock "0:00:00"]

1. e4 {[%clk 0:03:00]}  d5 {[%clk 0:02:41]} 2. exd5 {[%clk 0:02:59]}  Qxd5 {[%clk 0:02:39]} 3. Nc3 {[%clk 0:03:00]}  Qd6 {[%clk 0:02:39]} 4. Ne4 {[%clk 0:02:58]}  Qe6 {[%clk 0:02:28]} 5. Qe2 {[%clk 0:02:53]}  Nf6 {[%clk 0:02:16]} 6. Nxf6+ {[%clk 0:02:48]}  gxf6 {[%clk 0:02:07]} 7. Nf3 {[%clk 0:02:42]}  Nc6 {[%clk 0:02:03]} 8. d4 {[%clk 0:02:36]}  Rg8 {[%clk 0:01:56]} 9. Be3 {[%clk 0:02:34]}  Qd5 {[%clk 0:01:39]} 10. c3 {[%clk 0:02:24]}  Bg4 {[%clk 0:01:38]} 11. h3 {[%clk 0:02:16]}  Bxf3 {[%clk 0:01:38]} 12. gxf3 {[%clk 0:02:13]}  O-O-O {[%clk 0:01:38]} 13. a3 {[%clk 0:01:58]}  e5 {[%clk 0:01:28]} 14. O-O-O {[%clk 0:01:55]}  Qa2 {[%clk 0:01:27]} 15. Qc4 {[%clk 0:01:46]}  Qxc4 {[%clk 0:01:16]} 16. Bxc4 {[%clk 0:01:47]}  exd4 {[%clk 0:01:13]} 17. Bxf7 {[%clk 0:01:38]}  Rg2 {[%clk 0:00:48]} 18. Be6+ {[%clk 0:01:33]}  Kb8 {[%clk 0:00:48]} 19. cxd4 {[%clk 0:01:30]}  Rd6 {[%clk 0:00:23]} 20. Bf5 {[%clk 0:01:27]}  Ne7 {[%clk 0:00:14]} 21. Bxh7 {[%clk 0:01:22]}  f5 {[%clk 0:00:15]} 22. Rhg1 {[%clk 0:01:15]}  Rh2 {[%clk 0:00:10]} 23. Rh1 {[%clk 0:01:11]}  Rxh1 {[%clk 0:00:10]} 24. Rxh1 {[%clk 0:01:12]}  Kc8 {[%clk 0:00:04]} 25. h4 {[%clk 0:01:10]}  Kd7 {[%clk 0:00:04]} 26. Rg1 {[%clk 0:01:10]}  Ke6 {[%clk 0:00:04]} 27. Bg8+ {[%clk 0:01:09]}  Kf6 {[%clk 0:00:00]} 28. Bg5+ {[%clk 0:01:07]} 1-0

[Event "December 5 Late 2023"]
[Site "https://www.chess.com"]
[Date "2023.12.05"]
[Round "5"]
[White "Bongo Akanga Ndjila, Barthelemy"]
[Black "Micic, Aleksa"]
[Result "0-1"]
[Board "143"]
[TimeControl "180+1"]
[WhiteFideId "10609431"]
[BlackFideId "989940"]
[WhiteElo "2025"]
[BlackElo "2349"]
[WhiteTeam "GAB"]
[BlackTeam "SRB"]
[WhiteClock "0:00:05"]
[BlackClock "0:00:19"]

1. d4 {[%clk 0:02:54]}  Nf6 {[%clk 0:02:59]} 2. c4 {[%clk 0:02:53]}  c5 {[%clk 0:02:59]} 3. d5 {[%clk 0:02:53]}  b5 {[%clk 0:02:59]} 4. cxb5 {[%clk 0:02:53]}  a6 {[%clk 0:02:59]} 5. e3 {[%clk 0:02:52]}  g6 {[%clk 0:02:59]} 6. a4 {[%clk 0:02:51]}  Bg7 {[%clk 0:02:58]} 7. Nc3 {[%clk 0:02:51]}  O-O {[%clk 0:02:57]} 8. Nf3 {[%clk 0:02:52]}  Bb7 {[%clk 0:02:58]} 9. e4 {[%clk 0:02:51]}  e6 {[%clk 0:02:58]} 10. Bc4 {[%clk 0:02:48]}  exd5 {[%clk 0:02:57]} 11. exd5 {[%clk 0:02:47]}  axb5 {[%clk 0:02:52]} 12. Bxb5 {[%clk 0:02:47]}  Re8+ {[%clk 0:02:49]} 13. Be2 {[%clk 0:02:41]}  d6 {[%clk 0:02:45]} 14. O-O {[%clk 0:02:41]}  Na6 {[%clk 0:02:38]} 15. Bb5 {[%clk 0:02:41]}  Re7 {[%clk 0:02:34]} 16. Bg5 {[%clk 0:02:31]}  h6 {[%clk 0:02:33]} 17. Bh4 {[%clk 0:02:25]}  Nb4 {[%clk 0:02:31]} 18. Qd2 {[%clk 0:01:24]}  g5 {[%clk 0:02:30]} 19. Bg3 {[%clk 0:01:22]}  Nbxd5 {[%clk 0:02:29]} 20. Nxd5 {[%clk 0:01:21]}  Bxd5 {[%clk 0:02:28]} 21. Rad1 {[%clk 0:01:13]}  Re4 {[%clk 0:02:04]} 22. Rfe1 {[%clk 0:01:05]}  Rxe1+ {[%clk 0:02:03]} 23. Nxe1 {[%clk 0:00:59]}  Bb3 {[%clk 0:01:58]} 24. Ra1 {[%clk 0:00:56]}  Ne4 {[%clk 0:01:53]} 25. Qd3 {[%clk 0:00:51]}  Nxg3 {[%clk 0:01:48]} 26. Qxb3 {[%clk 0:00:49]}  Ne4 {[%clk 0:01:36]} 27. Rd1 {[%clk 0:00:46]}  Qf6 {[%clk 0:01:30]} 28. Qe3 {[%clk 0:00:41]}  d5 {[%clk 0:00:45]} 29. f3 {[%clk 0:00:39]}  Nd6 {[%clk 0:00:31]} 30. Qxc5 {[%clk 0:00:35]}  Nxb5 {[%clk 0:00:29]} 31. axb5 {[%clk 0:00:34]}  Qxb2 {[%clk 0:00:26]} 32. Qxd5 {[%clk 0:00:33]}  Ra2 {[%clk 0:00:22]} 33. Qd8+ {[%clk 0:00:28]}  Bf8 {[%clk 0:00:20]} 34. Qd4 {[%clk 0:00:14]}  Qxd4+ {[%clk 0:00:19]} 35. Rxd4 {[%clk 0:00:05]}  Bc5 {[%clk 0:00:19]} 0-1

[Event "December 5 Late 2023"]
[Site "https://www.chess.com"]
[Date "2023.12.05"]
[Round "5"]
[White "Kappeler, Kaspar"]
[Black "Dmitriev, Sergey"]
[Result "0-1"]
[Board "144"]
[TimeControl "180+1"]
[WhiteFideId "1309072"]
[BlackFideId "14101785"]
[WhiteElo "2325"]
[BlackElo "1954"]
[WhiteTeam "SUI"]
[BlackTeam "UKR"]
[WhiteClock "0:00:00"]
[BlackClock "0:00:05"]

1. c4 {[%clk 0:03:00]}  d6 {[%clk 0:02:59]} 2. Nf3 {[%clk 0:02:54]}  g6 {[%clk 0:02:59]} 3. d4 {[%clk 0:02:53]}  Bg7 {[%clk 0:02:59]} 4. Nc3 {[%clk 0:02:53]}  Nf6 {[%clk 0:03:00]} 5. e4 {[%clk 0:02:53]}  O-O {[%clk 0:03:00]} 6. Be2 {[%clk 0:02:53]}  Nc6 {[%clk 0:03:00]} 7. d5 {[%clk 0:02:51]}  Nb8 {[%clk 0:02:58]} 8. O-O {[%clk 0:02:50]}  e5 {[%clk 0:02:49]} 9. Ne1 {[%clk 0:02:28]}  a5 {[%clk 0:02:46]} 10. Nd3 {[%clk 0:02:26]}  Nbd7 {[%clk 0:02:43]} 11. f3 {[%clk 0:02:24]}  b6 {[%clk 0:02:43]} 12. Be3 {[%clk 0:02:03]}  Ba6 {[%clk 0:02:32]} 13. b3 {[%clk 0:02:00]}  Nc5 {[%clk 0:02:30]} 14. Nf2 {[%clk 0:01:59]}  Nh5 {[%clk 0:02:20]} 15. Re1 {[%clk 0:01:48]}  f5 {[%clk 0:02:19]} 16. a3 {[%clk 0:01:30]}  f4 {[%clk 0:02:06]} 17. Bd2 {[%clk 0:01:29]}  Qh4 {[%clk 0:01:35]} 18. b4 {[%clk 0:01:25]}  axb4 {[%clk 0:01:33]} 19. axb4 {[%clk 0:01:25]}  Nd7 {[%clk 0:01:33]} 20. c5 {[%clk 0:01:21]}  bxc5 {[%clk 0:01:33]} 21. Bxa6 {[%clk 0:01:15]}  cxb4 {[%clk 0:01:31]} 22. Nb5 {[%clk 0:01:12]}  Nc5 {[%clk 0:01:27]} 23. Nxc7 {[%clk 0:01:10]}  Ra7 {[%clk 0:01:16]} 24. Ne6 {[%clk 0:00:54]}  Rfa8 {[%clk 0:01:04]} 25. Nxc5 {[%clk 0:00:46]}  dxc5 {[%clk 0:01:04]} 26. Qe2 {[%clk 0:00:45]}  Qd8 {[%clk 0:00:57]} 27. Qf1 {[%clk 0:00:42]}  Qb6 {[%clk 0:00:56]} 28. Bc4 {[%clk 0:00:41]}  Kh8 {[%clk 0:00:49]} 29. Rxa7 {[%clk 0:00:35]}  Qxa7 {[%clk 0:00:46]} 30. Ng4 {[%clk 0:00:27]}  Qa3 {[%clk 0:00:43]} 31. Qd3 {[%clk 0:00:21]}  Qb2 {[%clk 0:00:40]} 32. Bc1 {[%clk 0:00:16]}  Qa1 {[%clk 0:00:38]} 33. Rf1 {[%clk 0:00:16]}  Nf6 {[%clk 0:00:28]} 34. Bxf4 {[%clk 0:00:13]}  Nxg4 {[%clk 0:00:26]} 35. Rxa1 {[%clk 0:00:11]}  Rxa1+ {[%clk 0:00:23]} 36. Qf1 {[%clk 0:00:10]}  Rxf1+ {[%clk 0:00:22]} 37. Kxf1 {[%clk 0:00:10]}  exf4 {[%clk 0:00:22]} 38. fxg4 {[%clk 0:00:10]}  Be5 {[%clk 0:00:21]} 39. Ke2 {[%clk 0:00:10]}  Kg7 {[%clk 0:00:21]} 40. Kf3 {[%clk 0:00:10]}  Kf6 {[%clk 0:00:21]} 41. h4 {[%clk 0:00:10]}  h6 {[%clk 0:00:21]} 42. Bb3 {[%clk 0:00:09]}  g5 {[%clk 0:00:21]} 43. h5 {[%clk 0:00:08]}  Ke7 {[%clk 0:00:20]} 44. Ke2 {[%clk 0:00:08]}  Kd6 {[%clk 0:00:20]} 45. Kd3 {[%clk 0:00:08]}  Kc7 {[%clk 0:00:20]} 46. Kc4 {[%clk 0:00:08]}  Kb6 {[%clk 0:00:21]} 47. Ba4 {[%clk 0:00:08]}  Bd6 {[%clk 0:00:19]} 48. Bd7 {[%clk 0:00:08]}  Be5 {[%clk 0:00:18]} 49. Be6 {[%clk 0:00:08]}  Ka5 {[%clk 0:00:14]} 50. Bd7 {[%clk 0:00:07]}  Kb6 {[%clk 0:00:12]} 51. Be8 {[%clk 0:00:07]}  Bd6 {[%clk 0:00:11]} 52. Ba4 {[%clk 0:00:07]}  Be5 {[%clk 0:00:12]} 53. Bb3 {[%clk 0:00:07]}  Bd6 {[%clk 0:00:12]} 54. Ba2 {[%clk 0:00:06]}  Be5 {[%clk 0:00:12]} 55. d6 {[%clk 0:00:06]}  Bxd6 {[%clk 0:00:12]} 56. Kd5 {[%clk 0:00:06]}  Bc7 {[%clk 0:00:11]} 57. e5 {[%clk 0:00:07]}  Kb5 {[%clk 0:00:10]} 58. e6 {[%clk 0:00:07]}  Bd8 {[%clk 0:00:09]} 59. Kd6 {[%clk 0:00:07]}  Bf6 {[%clk 0:00:09]} 60. e7 {[%clk 0:00:03]}  Bxe7+ {[%clk 0:00:09]} 61. Kxe7 {[%clk 0:00:04]}  c4 {[%clk 0:00:09]} 62. Kd6 {[%clk 0:00:04]}  b3 {[%clk 0:00:09]} 63. Bb1 {[%clk 0:00:04]}  Kb4 {[%clk 0:00:10]} 64. Kd5 {[%clk 0:00:04]}  c3 {[%clk 0:00:10]} 65. Kd4 {[%clk 0:00:03]}  b2 {[%clk 0:00:10]} 66. Kd3 {[%clk 0:00:02]}  Kb3 {[%clk 0:00:09]} 67. Bc2+ {[%clk 0:00:01]}  Ka2 {[%clk 0:00:09]} 68. Kxc3 {[%clk 0:00:01]}  b1=Q {[%clk 0:00:09]} 69. Bxb1+ {[%clk 0:00:01]}  Kxb1 {[%clk 0:00:10]} 70. Kd4 {[%clk 0:00:02]}  Kc1 {[%clk 0:00:10]} 71. Ke5 {[%clk 0:00:02]}  Kd2 {[%clk 0:00:11]} 72. Kf6 {[%clk 0:00:03]}  Ke2 {[%clk 0:00:11]} 73. Kg6 {[%clk 0:00:04]}  Kf2 {[%clk 0:00:12]} 74. Kxh6 {[%clk 0:00:04]}  Kxg2 {[%clk 0:00:13]} 75. Kxg5 {[%clk 0:00:05]}  f3 {[%clk 0:00:13]} 76. h6 {[%clk 0:00:05]}  f2 {[%clk 0:00:13]} 77. h7 {[%clk 0:00:06]}  f1=Q {[%clk 0:00:14]} 78. h8=Q {[%clk 0:00:06]}  Qb5+ {[%clk 0:00:14]} 79. Kh4 {[%clk 0:00:04]}  Qe2 {[%clk 0:00:08]} 80. Qa8+ {[%clk 0:00:03]}  Kh2 {[%clk 0:00:08]} 81. Qb8+ {[%clk 0:00:03]}  Kh1 {[%clk 0:00:06]} 82. Qb7+ {[%clk 0:00:03]}  Kh2 {[%clk 0:00:07]} 83. Qc7+ {[%clk 0:00:03]}  Kh1 {[%clk 0:00:07]} 84. Qc6+ {[%clk 0:00:03]}  Kh2 {[%clk 0:00:07]} 85. Qd6+ {[%clk 0:00:03]}  Kh1 {[%clk 0:00:08]} 86. Qd5+ {[%clk 0:00:03]}  Kh2 {[%clk 0:00:08]} 87. Kg5 {[%clk 0:00:02]}  Qe7+ {[%clk 0:00:06]} 88. Kh5 {[%clk 0:00:02]}  Qe8+ {[%clk 0:00:06]} 89. Kg5 {[%clk 0:00:02]}  Qe7+ {[%clk 0:00:05]} 90. Kf5 {[%clk 0:00:01]}  Qf8+ {[%clk 0:00:05]} 91. Kg5 {[%clk 0:00:00]}  Qg7+ {[%clk 0:00:05]} 0-1

[Event "December 5 Late 2023"]
[Site "https://www.chess.com"]
[Date "2023.12.05"]
[Round "5"]
[White "Mazzilli, Piero"]
[Black "Vargas, Mauricio"]
[Result "1-0"]
[Board "146"]
[TimeControl "180+1"]
[WhiteFideId "807087"]
[BlackFideId "4404572"]
[WhiteElo "2323"]
[BlackElo "1830"]
[WhiteTeam "ITA"]
[BlackTeam "COL"]
[WhiteClock "0:01:29"]
[BlackClock "0:00:10"]

1. e4 {[%clk 0:03:00]}  d5 {[%clk 0:02:59]} 2. Nc3 {[%clk 0:02:59]}  dxe4 {[%clk 0:02:55]} 3. Nxe4 {[%clk 0:02:58]}  Nf6 {[%clk 0:02:55]} 4. Nxf6+ {[%clk 0:02:57]}  exf6 {[%clk 0:02:56]} 5. d4 {[%clk 0:02:58]}  Bd6 {[%clk 0:02:55]} 6. Be3 {[%clk 0:02:56]}  O-O {[%clk 0:02:53]} 7. Qd2 {[%clk 0:02:54]}  Re8 {[%clk 0:02:53]} 8. O-O-O {[%clk 0:02:54]}  Bf5 {[%clk 0:02:43]} 9. h3 {[%clk 0:02:50]}  Bg6 {[%clk 0:02:37]} 10. Bc4 {[%clk 0:02:42]}  c6 {[%clk 0:02:10]} 11. Bb3 {[%clk 0:02:38]}  a5 {[%clk 0:02:09]} 12. a4 {[%clk 0:02:34]}  Bb4 {[%clk 0:01:55]} 13. c3 {[%clk 0:02:26]}  Bd6 {[%clk 0:01:48]} 14. Ne2 {[%clk 0:02:23]}  b5 {[%clk 0:01:44]} 15. Nf4 {[%clk 0:02:20]}  Nd7 {[%clk 0:00:53]} 16. Nxg6 {[%clk 0:02:13]}  hxg6 {[%clk 0:00:51]} 17. h4 {[%clk 0:02:13]}  b4 {[%clk 0:00:40]} 18. c4 {[%clk 0:02:09]}  c5 {[%clk 0:00:33]} 19. h5 {[%clk 0:02:00]}  cxd4 {[%clk 0:00:31]} 20. Bxd4 {[%clk 0:01:51]}  g5 {[%clk 0:00:28]} 21. h6 {[%clk 0:01:51]}  g6 {[%clk 0:00:20]} 22. h7+ {[%clk 0:01:49]}  Kh8 {[%clk 0:00:19]} 23. Qxg5 {[%clk 0:01:39]}  Qc7 {[%clk 0:00:12]} 24. Qxf6+ {[%clk 0:01:29]}  Nxf6 {[%clk 0:00:10]} 25. Bxf6# {[%clk 0:01:29]} 1-0

[Event "December 5 Late 2023"]
[Site "https://www.chess.com"]
[Date "2023.12.05"]
[Round "5"]
[White "Titus, Andrew"]
[Black "Gumugama"]
[Result "1-0"]
[Board "148"]
[TimeControl "180+1"]
[WhiteFideId "2059770"]
[WhiteElo "2583"]
[BlackElo "2171"]
[WhiteTeam "USA"]
[WhiteClock "0:01:32"]
[BlackClock "0:01:01"]

1. e4 {[%clk 0:02:47]}  c5 {[%clk 0:02:59]} 2. Nf3 {[%clk 0:02:45]}  d6 {[%clk 0:02:59]} 3. d4 {[%clk 0:02:46]}  cxd4 {[%clk 0:02:59]} 4. Nxd4 {[%clk 0:02:46]}  Nf6 {[%clk 0:02:59]} 5. Nc3 {[%clk 0:02:45]}  a6 {[%clk 0:03:00]} 6. h3 {[%clk 0:02:45]}  e5 {[%clk 0:02:59]} 7. Nde2 {[%clk 0:02:41]}  h5 {[%clk 0:02:59]} 8. g3 {[%clk 0:02:40]}  Be7 {[%clk 0:03:00]} 9. Bg2 {[%clk 0:02:39]}  b5 {[%clk 0:03:00]} 10. O-O {[%clk 0:02:35]}  Bb7 {[%clk 0:03:00]} 11. Nd5 {[%clk 0:02:34]}  Nxd5 {[%clk 0:02:50]} 12. exd5 {[%clk 0:02:35]}  Nd7 {[%clk 0:02:49]} 13. a4 {[%clk 0:02:35]}  O-O {[%clk 0:02:37]} 14. f4 {[%clk 0:02:33]}  Bf6 {[%clk 0:02:33]} 15. Nc3 {[%clk 0:02:29]}  exf4 {[%clk 0:02:17]} 16. Bxf4 {[%clk 0:02:29]}  Bxc3 {[%clk 0:02:14]} 17. bxc3 {[%clk 0:02:25]}  g6 {[%clk 0:01:56]} 18. axb5 {[%clk 0:02:16]}  axb5 {[%clk 0:01:53]} 19. Rxa8 {[%clk 0:02:15]}  Bxa8 {[%clk 0:01:54]} 20. Qd4 {[%clk 0:02:13]}  Ne5 {[%clk 0:01:42]} 21. Bxe5 {[%clk 0:02:12]}  dxe5 {[%clk 0:01:42]} 22. Qxe5 {[%clk 0:02:12]}  Re8 {[%clk 0:01:41]} 23. Qd4 {[%clk 0:02:07]}  Re2 {[%clk 0:01:37]} 24. Be4 {[%clk 0:02:00]}  Qe7 {[%clk 0:01:28]} 25. Bf3 {[%clk 0:01:45]}  Qe3+ {[%clk 0:01:13]} 26. Qxe3 {[%clk 0:01:41]}  Rxe3 {[%clk 0:01:13]} 27. d6 {[%clk 0:01:37]}  Bxf3 {[%clk 0:01:01]} 28. d7 {[%clk 0:01:32]} 1-0

[Event "December 5 Late 2023"]
[Site "https://www.chess.com"]
[Date "2023.12.05"]
[Round "5"]
[White "Degtiarev, Evgeny"]
[Black "th3d4rkness"]
[Result "1-0"]
[Board "149"]
[TimeControl "180+1"]
[WhiteFideId "4149610"]
[WhiteElo "2339"]
[BlackElo "2148"]
[WhiteTeam "GER"]
[WhiteClock "0:00:12"]
[BlackClock "0:01:01"]

1. d4 {[%clk 0:03:00]}  Nf6 {[%clk 0:02:59]} 2. c4 {[%clk 0:02:57]}  g6 {[%clk 0:02:59]} 3. Nc3 {[%clk 0:02:57]}  d5 {[%clk 0:02:59]} 4. cxd5 {[%clk 0:02:57]}  Nxd5 {[%clk 0:02:59]} 5. e4 {[%clk 0:02:58]}  Nxc3 {[%clk 0:02:59]} 6. bxc3 {[%clk 0:02:59]}  Bg7 {[%clk 0:03:00]} 7. Bc4 {[%clk 0:02:59]}  c5 {[%clk 0:03:00]} 8. Ne2 {[%clk 0:02:58]}  O-O {[%clk 0:02:59]} 9. O-O {[%clk 0:02:55]}  Nc6 {[%clk 0:03:00]} 10. Be3 {[%clk 0:02:54]}  Qc7 {[%clk 0:02:59]} 11. Rc1 {[%clk 0:02:50]}  Rd8 {[%clk 0:02:58]} 12. Bd3 {[%clk 0:02:44]}  b6 {[%clk 0:02:52]} 13. Qd2 {[%clk 0:02:37]}  Na5 {[%clk 0:02:45]} 14. h4 {[%clk 0:02:31]}  c4 {[%clk 0:02:31]} 15. Bb1 {[%clk 0:02:28]}  e5 {[%clk 0:02:29]} 16. h5 {[%clk 0:02:04]}  Nb7 {[%clk 0:02:27]} 17. f4 {[%clk 0:01:56]}  exf4 {[%clk 0:02:08]} 18. Bxf4 {[%clk 0:01:51]}  Qd7 {[%clk 0:02:00]} 19. Bg5 {[%clk 0:01:40]}  Re8 {[%clk 0:01:58]} 20. e5 {[%clk 0:01:21]}  Qg4 {[%clk 0:01:54]} 21. h6 {[%clk 0:01:12]}  Bh8 {[%clk 0:01:49]} 22. Qf4 {[%clk 0:01:11]}  Be6 {[%clk 0:01:40]} 23. Be4 {[%clk 0:01:07]}  Rab8 {[%clk 0:01:38]} 24. Qxg4 {[%clk 0:00:55]}  Bxg4 {[%clk 0:01:38]} 25. Nf4 {[%clk 0:00:54]}  Nd8 {[%clk 0:01:37]} 26. Nd5 {[%clk 0:00:49]}  Ne6 {[%clk 0:01:33]} 27. Nf6+ {[%clk 0:00:32]}  Bxf6 {[%clk 0:01:33]} 28. Bxf6 {[%clk 0:00:33]}  b5 {[%clk 0:01:29]} 29. Kh2 {[%clk 0:00:25]}  Rec8 {[%clk 0:01:25]} 30. Rf2 {[%clk 0:00:24]}  a5 {[%clk 0:01:24]} 31. Kg3 {[%clk 0:00:24]}  Bh5 {[%clk 0:01:23]} 32. Kh4 {[%clk 0:00:23]}  b4 {[%clk 0:01:18]} 33. g4 {[%clk 0:00:23]}  Bxg4 {[%clk 0:01:17]} 34. Kxg4 {[%clk 0:00:22]}  b3 {[%clk 0:01:16]} 35. a4 {[%clk 0:00:20]}  b2 {[%clk 0:01:12]} 36. Rb1 {[%clk 0:00:19]}  Rb3 {[%clk 0:01:12]} 37. Rbxb2 {[%clk 0:00:19]}  Rxc3 {[%clk 0:01:13]} 38. Bd5 {[%clk 0:00:18]}  Nxd4 {[%clk 0:01:12]} 39. Bg5 {[%clk 0:00:13]}  Rc7 {[%clk 0:01:01]} 40. Rb8+ {[%clk 0:00:12]} 1-0

[Event "December 5 Late 2023"]
[Site "https://www.chess.com"]
[Date "2023.12.05"]
[Round "5"]
[White "Mesa Cruz, Juan Carlos"]
[Black "Yushko, Olga"]
[Result "1-0"]
[Board "154"]
[TimeControl "180+1"]
[WhiteFideId "6423400"]
[BlackFideId "14114500"]
[WhiteElo "2371"]
[BlackElo "2115"]
[WhiteTeam "DOM"]
[BlackTeam "UKR"]
[WhiteClock "0:00:35"]
[BlackClock "0:00:10"]

1. e4 {[%clk 0:03:00]}  e6 {[%clk 0:02:59]} 2. Ke2 {[%clk 0:02:59]}  d5 {[%clk 0:03:00]} 3. d3 {[%clk 0:02:56]}  Nf6 {[%clk 0:02:59]} 4. Nd2 {[%clk 0:02:51]}  Be7 {[%clk 0:02:59]} 5. Ngf3 {[%clk 0:02:50]}  O-O {[%clk 0:02:58]} 6. g3 {[%clk 0:02:50]}  c5 {[%clk 0:02:55]} 7. Bg2 {[%clk 0:02:50]}  Nc6 {[%clk 0:02:52]} 8. Re1 {[%clk 0:02:49]}  dxe4 {[%clk 0:02:47]} 9. dxe4 {[%clk 0:02:43]}  e5 {[%clk 0:02:17]} 10. Kf1 {[%clk 0:02:40]}  Bg4 {[%clk 0:02:17]} 11. h3 {[%clk 0:02:38]}  Bh5 {[%clk 0:02:17]} 12. g4 {[%clk 0:02:35]}  Bg6 {[%clk 0:02:16]} 13. Nh4 {[%clk 0:02:34]}  Nxe4 {[%clk 0:02:08]} 14. Nxg6 {[%clk 0:02:09]}  Nxd2+ {[%clk 0:02:01]} 15. Qxd2 {[%clk 0:02:06]}  hxg6 {[%clk 0:01:59]} 16. Bxc6 {[%clk 0:02:06]}  bxc6 {[%clk 0:01:55]} 17. Rxe5 {[%clk 0:02:05]}  Qc7 {[%clk 0:01:52]} 18. Qe2 {[%clk 0:01:59]}  Bf6 {[%clk 0:01:51]} 19. Re4 {[%clk 0:01:46]}  Qh2 {[%clk 0:01:48]} 20. Qf3 {[%clk 0:01:46]}  Rad8 {[%clk 0:01:46]} 21. Bf4 {[%clk 0:01:46]}  Bxb2 {[%clk 0:01:29]} 22. Rb1 {[%clk 0:01:41]}  f5 {[%clk 0:01:25]} 23. Bxh2 {[%clk 0:01:34]}  fxe4 {[%clk 0:01:25]} 24. Qxe4 {[%clk 0:01:30]}  Bd4 {[%clk 0:01:03]} 25. Bg3 {[%clk 0:01:29]}  Rde8 {[%clk 0:00:52]} 26. Qxg6 {[%clk 0:01:18]}  Re3 {[%clk 0:00:45]} 27. Rb7 {[%clk 0:01:14]}  Rxg3 {[%clk 0:00:41]} 28. Qe6+ {[%clk 0:01:08]}  Kh8 {[%clk 0:00:40]} 29. Rb8 {[%clk 0:00:47]}  Rf3 {[%clk 0:00:29]} 30. Rxf8+ {[%clk 0:00:45]}  Rxf8 {[%clk 0:00:29]} 31. Qxc6 {[%clk 0:00:43]}  Rxf2+ {[%clk 0:00:27]} 32. Ke1 {[%clk 0:00:43]}  Rf8 {[%clk 0:00:14]} 33. Ke2 {[%clk 0:00:36]}  Re8+ {[%clk 0:00:10]} 34. Qxe8+ {[%clk 0:00:35]} 1-0

[Event "December 5 Late 2023"]
[Site "https://www.chess.com"]
[Date "2023.12.05"]
[Round "5"]
[White "Clarke, Matthew"]
[Black "Winkels, Marcel"]
[Result "0-1"]
[Board "157"]
[TimeControl "180+1"]
[WhiteFideId "3227804"]
[BlackFideId "1003887"]
[WhiteElo "2252"]
[BlackElo "1995"]
[WhiteTeam "AUS"]
[BlackTeam "NED"]
[WhiteClock "0:00:08"]
[BlackClock "0:01:22"]

1. c4 {[%clk 0:02:57]}  e5 {[%clk 0:02:57]} 2. Nc3 {[%clk 0:02:56]}  Bb4 {[%clk 0:02:57]} 3. g3 {[%clk 0:02:53]}  Bxc3 {[%clk 0:02:55]} 4. dxc3 {[%clk 0:02:50]}  d6 {[%clk 0:02:56]} 5. Bg2 {[%clk 0:02:49]}  f5 {[%clk 0:02:56]} 6. e4 {[%clk 0:02:43]}  c6 {[%clk 0:02:52]} 7. Ne2 {[%clk 0:02:39]}  Nf6 {[%clk 0:02:51]} 8. exf5 {[%clk 0:02:27]}  Bxf5 {[%clk 0:02:51]} 9. O-O {[%clk 0:02:26]}  O-O {[%clk 0:02:50]} 10. f4 {[%clk 0:02:18]}  e4 {[%clk 0:02:45]} 11. Nd4 {[%clk 0:01:54]}  Bg4 {[%clk 0:02:44]} 12. Qe1 {[%clk 0:01:48]}  d5 {[%clk 0:02:42]} 13. cxd5 {[%clk 0:01:45]}  cxd5 {[%clk 0:02:42]} 14. b3 {[%clk 0:01:39]}  Nc6 {[%clk 0:02:37]} 15. Nc2 {[%clk 0:01:32]}  Qb6+ {[%clk 0:02:33]} 16. Kh1 {[%clk 0:01:26]}  Rad8 {[%clk 0:02:30]} 17. Be3 {[%clk 0:01:06]}  Qc7 {[%clk 0:02:28]} 18. Qf2 {[%clk 0:00:59]}  b6 {[%clk 0:02:25]} 19. h3 {[%clk 0:00:53]}  Bd7 {[%clk 0:02:21]} 20. Rac1 {[%clk 0:00:51]}  Ne7 {[%clk 0:02:01]} 21. Nd4 {[%clk 0:00:37]}  Nf5 {[%clk 0:01:44]} 22. Nxf5 {[%clk 0:00:36]}  Bxf5 {[%clk 0:01:43]} 23. g4 {[%clk 0:00:36]}  Bd7 {[%clk 0:01:40]} 24. c4 {[%clk 0:00:27]}  Qb7 {[%clk 0:01:37]} 25. Rfd1 {[%clk 0:00:12]}  Rfe8 {[%clk 0:01:34]} 26. g5 {[%clk 0:00:10]}  Nh5 {[%clk 0:01:29]} 27. Rxd5 {[%clk 0:00:10]}  Bc6 {[%clk 0:01:24]} 28. Rxd8 {[%clk 0:00:10]}  Rxd8 {[%clk 0:01:23]} 29. Qe2 {[%clk 0:00:08]}  Ng3+ {[%clk 0:01:22]} 0-1